bitfinex/quotes_ETHUSD_20260129
["timestamp","ask_amount","ask_price","bid_price","bid_amount"]
[1769705709985,0.94868379,2822.7,2820.9,0.52766558]
[1769705710188,0.94868379,2822.7,2821.4,0.88607827]
[1769705710373,0.88564545,2822.8,2820.8,3.55572825]
[1769705710374,0.94868379,2822.5,2820.8,3.55572825]
[1769705710581,0.94868379,2822.5,2820.9,1.24179516]
[1769705710773,0.94868379,2822.5,2820.9,0.88622233]
[1769705711177,0.94868379,2822.5,2821.0,0.88621045]
[1769705711383,0.94868379,2822.3,2820.6,0.88633624]
[1769705712169,0.94868379,2822.3,2820.6,0.89701543]
[1769705712370,0.94868379,2822.1,2820.7,0.01067919]
[1769705713195,0.94868379,2822.1,2820.9,0.01067919]
[1769705713396,0.94868379,2821.9,2820.6,0.88633624]
[1769705713580,0.94868379,2821.9,2821.3,0.002]
[1769705714099,0.88585204,2822.2,2821.3,0.002]
[1769705714304,1.83450297,2822.3,2821.3,0.002]
[1769705714705,0.94868379,2822.3,2821.4,0.01067919]
[1769705715070,0.88577448,2822.4,2821.4,0.01067919]
[1769705715287,0.94868379,2822.3,2821.4,0.01067919]
[1769705715484,0.94868379,2822.2,2821.5,0.88605351]
[1769705715776,0.94868379,2822.2,2821.4,0.88607121]
[1769705716391,0.88577436,2822.4,2821.4,0.88607121]
[1769705716595,0.94868379,2822.3,2821.4,0.88607121]
[1769705716795,0.94868379,2822.3,2821.4,1.32931475]
[1769705717471,0.94868379,2822.2,2821.4,1.32931475]
[1769705718619,0.88578685,2822.4,2821.4,1.33999394]
[1769705718778,0.88674802,2822.5,2821.4,1.33999394]
[1769705718984,0.88674713,2822.5,2821.4,1.33999394]
[1769705719290,0.88674713,2822.5,2821.5,0.48863724]
[1769705719598,0.88674713,2822.5,2821.6,0.88602211]
[1769705719599,1.83542848,2822.5,2821.6,0.88602211]
[1769705719980,0.94868379,2822.4,2821.5,1.37468917]
[1769705720185,0.94868379,2822.4,2821.5,0.88605193]
[1769705721138,0.001,2822.5,2821.7,0.01067919]
[1769705721671,0.001,2822.5,2821.8,0.88595931]
[1769705722210,0.001,2822.5,2821.8,0.8966385]
[1769705722378,0.001,2822.5,2821.9,0.44404758]
[1769705723873,0.94968379,2822.5,2821.9,0.44404758]
[1769705724074,0.94968379,2822.5,2821.8,0.88594157]
[1769705724274,0.94968379,2822.5,2821.9,0.88592088]
[1769705724574,0.94968379,2822.5,2821.8,0.88595681]
[1769705724795,0.94968379,2822.5,2821.7,3.54395098]
[1769705725000,0.94968379,2822.5,2821.5,0.01067919]
[1769705725204,0.94868379,2822.4,2821.7,0.88598601]
[1769705725408,0.001,2822.5,2821.9,0.88590371]
[1769705725613,0.001,2822.5,2821.9,0.88592718]
[1769705725907,0.90554274,2822.4,2821.6,0.88600013]
[1769705726381,0.90554274,2822.2,2821.6,0.88600013]
[1769705726578,0.90554274,2822.2,2821.3,0.002]
[1769705726809,0.90554274,2822.2,2821.4,1.15606471]
[1769705726977,0.90554274,2822.2,2821.5,0.88603674]
[1769705727186,0.90554274,2822.2,2821.4,0.27]
[1769705727391,0.90554274,2822.2,2821.6,0.88601963]
[1769705727598,0.90554274,2822.2,2821.6,0.47001081]
[1769705727799,0.90554274,2822.2,2821.5,0.8860479]
[1769705727998,0.90554274,2822.1,2821.5,0.88604749]
[1769705728586,0.001,2822.3,2821.5,0.88604749]
[1769705728798,0.001,2822.3,2821.8,0.01067919]
[1769705729108,0.001,2822.3,2821.5,0.88604749]
[1769705729313,0.001,2822.3,2821.6,0.44410406]
[1769705730017,0.001,2822.3,2821.7,0.88599071]
[1769705730509,0.001,2822.3,2821.7,0.8966699]
[1769705730718,0.001,2822.3,2821.7,0.88599071]
[1769705731010,0.001,2822.3,2821.7,0.8966699]
[1769705731240,0.0195952,2823.0,2822.2,0.01067919]
[1769705731381,0.0195952,2823.0,2822.4,0.01067919]
[1769705731795,0.0195952,2823.0,2822.2,0.01067919]
[1769705732090,0.0195952,2823.0,2822.5,0.88573959]
[1769705732825,0.90554274,2823.5,2822.5,0.88573959]
[1769705733006,1.79097569,2823.5,2822.6,0.44393772]
[1769705733325,0.88543295,2823.5,2822.6,0.44393772]
[1769705733495,0.90819963,2823.6,2822.6,0.44393772]
[1769705733819,3.87423946,2824.1,2822.6,0.44393772]
[1769705733820,3.54134494,2823.8,2822.6,0.44393772]
[1769705734116,4.44954457,2823.8,2822.8,0.88564545]
[1769705734314,1.79353145,2823.8,2822.8,0.88564545]
[1769705734516,0.90819963,2823.8,2822.9,0.44390179]
[1769705735316,0.33319812,2824.1,2823.2,0.01067919]
[1769705735519,1.79338292,2824.3,2823.4,0.01067919]
[1769705735682,0.90819963,2824.3,2823.4,0.01067919]
[1769705735893,1.79337848,2824.3,2823.4,0.01067919]
[1769705736125,3.53972111,2825.1,2823.5,0.88542588]
[1769705736126,0.88508107,2824.6,2823.5,0.88542588]
[1769705736425,0.90819963,2824.5,2823.6,0.44378086]
[1769705736607,0.90819963,2824.5,2823.4,0.89611508]
[1769705737090,0.90819963,2824.5,2823.5,0.01067919]
[1769705737286,0.90819963,2824.5,2823.7,0.01067919]
[1769705737489,0.88508107,2824.6,2823.5,0.01067919]
[1769705737490,0.90819963,2825.0,2823.5,0.01067919]
[1769705737821,0.90819963,2826.2,2824.7,0.01067919]
[1769705738021,0.90819963,2826.1,2825.8,0.18484852]
[1769705738391,0.90819963,2826.4,2825.4,0.01067919]
[1769705738716,0.90819963,2826.4,2824.7,0.89571186]
[1769705738950,0.90819963,2826.4,2824.5,0.82938639]
[1769705739089,0.90819963,2825.8,2824.5,0.8187072]
[1769705740219,0.90819963,2825.6,2823.8,3.54122229]
[1769705740522,0.88473652,2825.7,2823.8,3.54122229]
[1769705740523,0.90819963,2825.4,2824.3,0.01067919]
[1769705740818,0.90819963,2825.4,2823.9,0.44372333]
[1769705741000,0.90819963,2825.4,2823.9,0.01067919]
[1769705741324,0.90819963,2825.2,2823.7,0.01067919]
[1769705741490,0.90819963,2825.0,2823.5,0.01067919]
[1769705741826,0.742,2825.5,2823.1,0.70420796]
[1769705741827,0.90819963,2824.8,2823.1,0.70420796]
[1769705742049,1.65019963,2824.7,2823.4,0.01067919]
[1769705742189,0.88508107,2824.6,2823.6,0.01067919]
[1769705742520,0.88508107,2824.6,2823.7,0.01067919]
[1769705742521,0.742,2824.5,2823.7,0.01067919]
[1769705742721,0.88508107,2824.6,2823.9,0.01067919]
[1769705743925,0.90819963,2824.5,2823.6,0.01067919]
[1769705744229,3.54032304,2824.7,2823.8,0.01067919]
[1769705744413,0.90819963,2824.6,2823.7,0.88534131]
[1769705744598,3.54032304,2824.7,2823.7,0.01067919]
[1769705744787,4.44807155,2825.0,2823.9,0.01067919]
[1769705745123,0.88498707,2824.9,2824.1,0.01067919]
[1769705745418,0.88486178,2825.3,2824.2,0.01067919]
[1769705745616,1.62686178,2825.3,2824.2,0.01067919]
[1769705745833,1.62686178,2825.3,2823.8,0.89600073]
[1769705745834,0.90819963,2825.2,2823.8,0.88532386]
[1769705746002,0.90819963,2825.2,2823.7,0.89602452]
[1769705746211,0.90819963,2825.2,2823.6,0.88538907]
[1769705746593,0.90819963,2825.0,2823.7,0.01067919]
[1769705746793,0.90819963,2825.0,2823.5,3.54167341]
[1769705746991,0.90819963,2825.0,2823.6,0.01067919]
[1769705747400,0.90819963,2825.0,2823.2,0.01067919]
[1769705747609,0.90819963,2825.0,2823.4,0.89611367]
[1769705747817,0.90819963,2825.0,2823.4,0.01067919]
[1769705748018,0.90819963,2825.0,2823.4,0.35632389]
[1769705748213,1.65019963,2824.9,2823.7,0.01067919]
[1769705748503,0.88504973,2824.7,2823.8,0.01067919]
[1769705749826,0.90819963,2824.6,2823.2,0.01067919]
[1769705750024,0.90819963,2824.6,2823.2,0.89618032]
[1769705750228,0.90819963,2824.4,2823.1,0.70420796]
[1769705750609,0.90819963,2824.2,2823.1,0.70420796]
[1769705750809,0.90819963,2824.0,2822.5,0.88573905]
[1769705751009,0.90819963,2824.0,2821.9,0.01067919]
[1769705751212,0.90819963,2824.0,2823.7,0.001]
[1769705751410,0.90819963,2823.6,2821.4,0.98229018]
[1769705751738,0.90819963,2823.6,2821.7,0.01067919]
[1769705751938,0.1024,2824.1,2822.2,0.01067919]
[1769705752113,0.742,2823.8,2822.3,0.88778555]
[1769705752311,0.90819963,2823.7,2822.3,0.002]
[1769705752640,0.90819963,2823.5,2822.3,0.002]
[1769705752816,0.88539453,2823.6,2822.3,0.002]
[1769705753136,0.742,2823.4,2822.3,0.002]
[1769705753330,0.742,2823.4,2822.3,0.01267919]
[1769705753650,0.88539453,2823.6,2821.7,0.99296937]
[1769705753651,1.65019963,2823.3,2821.7,0.99296937]
[1769705753838,1.65019963,2823.3,2821.9,0.01067919]
[1769705754005,0.88539453,2823.6,2822.3,0.01067919]
[1769705754211,0.742,2823.5,2822.1,0.01067919]
[1769705754610,0.88539453,2823.6,2822.4,0.88577097]
[1769705754836,0.88539453,2823.6,2822.5,0.44395341]
[1769705755039,0.742,2823.5,2822.5,0.44395341]
[1769705755344,1.69834266,2823.5,2822.1,3.54344317]
[1769705755524,1.69834266,2823.5,2822.2,0.88581133]
[1769705755838,0.742,2823.4,2822.3,0.89647742]
[1769705756043,0.742,2823.4,2822.2,0.88581489]
[1769705756212,0.742,2823.4,2822.1,0.88584447]
[1769705756410,0.742,2823.4,2822.2,0.8858331]
[1769705756642,0.742,2823.4,2822.2,1.32877372]
[1769705756838,0.88548861,2823.3,2822.2,1.32877372]
[1769705757375,4.49745627,2824.0,2822.4,0.98492255]
[1769705757654,1.69834266,2823.9,2822.5,0.01067919]
[1769705757957,0.742,2823.8,2822.3,0.01067919]
[1769705758157,0.742,2823.8,2822.5,0.01067919]
[1769705758681,1.69834266,2823.8,2822.3,0.01067919]
[1769705758815,0.95634266,2823.6,2822.2,0.44294062]
[1769705759154,0.742,2823.5,2822.1,0.88584529]
[1769705759357,0.95634266,2823.4,2822.1,0.88585878]
[1769705759511,0.95634266,2823.4,2821.8,0.18789915]
[1769705759846,0.95634266,2823.4,2822.0,0.88589094]
[1769705760056,0.742,2823.4,2822.3,0.88579653]
[1769705761039,0.95634266,2823.2,2822.0,0.46282149]
[1769705761255,0.95634266,2823.2,2821.9,0.88592716]
[1769705761460,0.742,2823.1,2822.2,0.01067919]
[1769705761632,0.95634266,2823.6,2822.2,0.01067919]
[1769705761633,0.88526912,2824.0,2822.2,0.97424336]
[1769705761828,1.62726912,2824.0,2822.8,0.01067919]
[1769705762158,2.58361178,2824.0,2822.5,0.01067919]
[1769705762357,2.58361178,2824.0,2822.6,0.01067919]
[1769705762563,0.95634266,2823.9,2822.0,0.89657423]
[1769705762762,0.95634266,2823.9,2822.4,0.01067919]
[1769705763063,1.84170583,2823.7,2822.1,0.01067919]
[1769705763264,0.95634266,2823.6,2822.2,0.89650871]
[1769705763432,0.95634266,2823.6,2822.3,0.01067919]
[1769705763634,0.88536317,2823.7,2822.8,0.01067919]
[1769705763832,0.742,2823.6,2822.6,0.01067919]
[1769705764030,0.001,2823.8,2823.0,0.01067919]
[1769705764568,1.63861905,2824.7,2823.5,0.01067919]
[1769705764731,1.63861905,2824.7,2823.8,0.01067919]
[1769705764933,0.75354822,2824.7,2824.1,0.88523777]
[1769705765133,1.63860448,2824.7,2823.9,0.89595949]
[1769705765333,1.63860379,2824.7,2823.9,0.89596016]
[1769705765662,1.49554822,2824.7,2824.0,0.89594382]
[1769705765961,0.001,2824.8,2824.4,0.01067919]
[1769705766644,0.742,2825.5,2824.7,0.01067919]
[1769705766866,0.742,2825.6,2824.9,0.01067919]
[1769705767159,1.84092266,2826.3,2825.1,0.01067919]
[1769705767366,4.28044049,2826.2,2825.1,0.01067919]
[1769705767568,0.88458,2826.3,2825.1,0.01067919]
[1769705767569,3.53778782,2826.7,2825.1,0.89557958]
[1769705767731,0.742,2826.3,2825.3,0.01067919]
[1769705768139,0.742,2826.3,2825.0,0.88493877]
[1769705768336,3.53778782,2826.7,2825.1,0.01067919]
[1769705768539,4.49413048,2826.7,2825.1,0.88489718]
[1769705768768,0.742,2826.6,2825.3,0.01067919]
[1769705769161,0.742,2826.6,2825.4,0.01067919]
[1769705769162,0.88448611,2826.5,2825.4,0.01067919]
[1769705769353,0.88432967,2827.0,2825.9,0.01067919]
[1769705769538,0.01067919,2825.8,2824.3,0.36182553]
[1769705769743,0.01067919,2825.3,2824.1,0.88521447]
[1769705769937,0.01067919,2825.3,2824.0,0.88524739]
[1769705770167,0.01067919,2825.3,2823.7,1.54736772]
[1769705770469,0.01067919,2825.8,2824.1,0.88523641]
[1769705770658,0.01067919,2825.8,2824.1,0.97424336]
[1769705770967,0.01067919,2825.8,2823.8,0.24327327]
[1769705770968,0.01067919,2825.6,2823.8,0.24327327]
[1769705771137,0.88479915,2825.5,2823.8,1.12858668]
[1769705771340,0.88479915,2825.5,2823.8,0.24327327]
[1769705771666,0.88479915,2825.5,2823.8,1.12859808]
[1769705772450,0.88458,2826.2,2824.2,0.97424336]
[1769705772659,0.88458,2826.2,2824.6,0.97424336]
[1769705772992,0.88458,2826.2,2824.8,0.2335703]
[1769705773147,3.53832,2826.3,2823.9,0.88528046]
[1769705773148,0.01067919,2825.1,2823.9,0.88528046]
[1769705773342,0.01067919,2825.4,2823.8,0.24327327]
[1769705773539,0.01067919,2825.7,2823.9,0.97424336]
[1769705773743,0.01067919,2825.7,2823.7,0.57312436]
[1769705773744,0.01067919,2825.2,2823.7,1.31512436]
[1769705774049,0.01067919,2825.0,2823.7,0.57312436]
[1769705774252,0.01067919,2824.8,2823.7,0.57312436]
[1769705774659,0.01067919,2825.0,2823.7,0.57312436]
[1769705774858,0.01067919,2824.8,2823.7,0.57312436]
[1769705775054,0.88504973,2824.7,2823.7,0.57312436]
[1769705776179,0.88504973,2824.7,2823.9,0.002]
[1769705777048,0.001,2825.0,2823.9,0.002]
[1769705778765,0.95734266,2825.0,2823.9,0.002]
[1769705779185,0.88498707,2824.9,2823.9,0.002]
[1769705784593,0.001,2825.0,2823.9,0.002]
[1769705787210,0.92171796,2825.0,2823.9,0.002]
[1769705787596,0.001,2825.0,2823.9,0.002]
[1769705789613,0.001,2825.0,2823.9,0.744]
[1769705789814,0.001,2825.0,2824.1,0.002]
[1769705790615,0.92071796,2825.9,2824.4,0.01067919]
[1769705790789,0.88470521,2825.8,2824.6,0.01067919]
[1769705791584,0.88458,2826.2,2824.6,0.01067919]
[1769705791799,1.80529796,2826.2,2824.6,0.01067919]
[1769705792088,0.92071796,2826.1,2824.7,0.742]
[1769705792298,0.88458,2826.2,2824.7,0.742]
[1769705792695,3.53831041,2826.3,2824.8,0.8850184]
[1769705792923,3.53832,2826.4,2824.9,1.4736093]
[1769705793285,0.8845174,2826.4,2824.9,1.4736093]
[1769705793512,0.8845174,2826.4,2824.9,1.48428849]
[1769705794020,3.53703963,2827.3,2825.4,0.9569001]
[1769705794021,1.79362514,2827.3,2825.4,0.9569001]
[1769705794323,1.79362514,2827.3,2825.3,0.01067919]
[1769705794324,1.79362514,2827.3,2825.7,0.96757929]
[1769705794531,0.9093893,2828.1,2826.5,0.01067919]
[1769705794692,0.9093893,2827.9,2826.4,0.8845174]
[1769705794890,0.9093893,2827.9,2826.3,0.88454206]
[1769705796206,0.9093893,2827.9,2826.5,0.01067919]
[1769705796403,0.9093893,2827.8,2826.3,0.89522125]
[1769705796692,0.9093893,2827.6,2826.3,0.88454206]
[1769705797515,0.88411076,2827.7,2826.3,0.89522125]
[1769705797893,0.88404823,2827.9,2826.3,0.89522125]
[1769705798089,1.79343753,2827.9,2826.5,0.01067919]
[1769705798301,0.9093893,2827.8,2826.5,0.01067919]
[1769705798497,0.88403868,2828.0,2827.0,0.01067919]
[1769705798908,0.88395445,2828.2,2827.1,0.88429839]
[1769705799432,0.9093893,2828.1,2826.8,3.54812719]
[1769705799612,0.9093893,2828.1,2827.0,0.88432898]
[1769705799811,0.9093893,2828.1,2826.9,0.88433549]
[1769705800000,0.9093893,2828.1,2827.0,0.88432811]
[1769705800326,0.9093893,2828.1,2826.9,0.88434129]
[1769705800713,0.9093893,2828.1,2826.7,3.53768553]
[1769705800913,0.9093893,2827.9,2826.8,3.53755108]
[1769705801220,3.53581783,2828.5,2826.8,3.53755108]
[1769705801221,0.9093893,2828.9,2827.6,0.01067919]
[1769705801528,0.9093893,2829.3,2828.2,0.01067919]
[1769705801733,0.90339794,2828.7,2827.8,0.01067919]
[1769705801930,0.90339794,2828.7,2827.5,0.01067919]
[1769705802504,0.001,2827.9,2827.3,0.01067919]
[1769705802716,0.001,2827.9,2827.5,0.01067919]
[1769705802921,0.001,2827.9,2827.5,0.89484824]
[1769705803234,0.001,2827.9,2827.3,0.89489572]
[1769705803427,0.001,2827.9,2827.4,0.89486723]
[1769705803601,0.0195952,2828.7,2827.8,0.01067919]
[1769705803801,0.0195952,2828.7,2828.2,0.01067919]
[1769705804197,0.90339457,2828.7,2828.2,0.01067919]
[1769705804522,0.0195952,2828.7,2828.2,0.01067919]
[1769705805026,0.90339993,2828.7,2828.2,0.01067919]
[1769705805233,0.0195952,2828.7,2828.2,0.01067919]
[1769705806030,0.0195952,2828.7,2828.2,0.89462419]
[1769705806232,0.0195952,2828.7,2828.4,0.01067919]
[1769705806434,0.8835171,2829.6,2828.6,0.01067919]
[1769705806736,0.9093893,2829.5,2828.4,0.01067919]
[1769705806915,0.88357955,2829.4,2828.3,0.88390772]
[1769705807230,0.88357955,2829.4,2828.6,0.01067919]
[1769705807615,0.8835171,2829.6,2828.9,0.01067919]
[1769705808019,0.44953899,2829.7,2829.2,0.01067919]
[1769705808218,0.44953899,2829.7,2829.3,0.01067919]
[1769705808406,0.44953899,2829.7,2829.0,0.01067919]
[1769705808715,2.2424192,2829.7,2828.6,0.01067919]
[1769705809063,1.3330299,2829.7,2828.8,0.01067919]
[1769705809210,0.44953899,2829.7,2829.1,0.01067919]
[1769705809561,1.3330411,2829.7,2828.9,0.01067919]
[1769705809760,1.3330411,2829.7,2828.6,0.01067919]
[1769705809910,1.3330411,2829.7,2828.8,0.01067919]
[1769705811035,1.3330411,2829.7,2829.0,0.01067919]
[1769705811531,0.44953899,2829.7,2829.0,0.01067919]
[1769705811742,1.33303484,2829.7,2829.0,0.01067919]
[1769705812111,1.33303039,2829.7,2829.0,0.01067919]
[1769705812312,1.33303039,2829.7,2828.8,0.8837581]
[1769705812542,0.44953899,2829.7,2829.0,0.89437895]
[1769705812921,1.3330269,2829.7,2828.7,0.88379276]
[1769705813119,1.3330269,2829.7,2828.8,0.89444577]
[1769705813319,1.3330269,2829.7,2828.7,0.01067919]
[1769705813561,1.3330269,2829.7,2828.8,0.89443758]
[1769705813562,0.9093893,2829.6,2828.8,0.89443758]
[1769705813782,0.9093893,2829.6,2828.7,0.8837819]
[1769705813925,0.9093893,2829.6,2828.8,0.01067919]
[1769705814617,0.44953899,2829.7,2829.0,0.01067919]
[1769705814811,0.001,2829.5,2829.0,0.01067919]
[1769705815089,0.001,2829.5,2828.9,0.01067919]
[1769705815253,0.001,2829.5,2829.1,0.01067919]
[1769705816026,0.9045692,2831.0,2829.3,0.01067919]
[1769705816368,0.008208,2831.4,2830.2,0.01067919]
[1769705816543,0.008208,2831.4,2830.0,0.01067919]
[1769705816867,0.419,2832.8,2831.8,0.01067919]
[1769705816868,0.18447008,2832.8,2831.8,0.01067919]
[1769705817066,0.9045692,2833.1,2831.9,0.01067919]
[1769705817268,0.003,2833.3,2832.5,0.01067919]
[1769705817566,0.003,2833.3,2832.8,0.01067919]
[1769705818344,0.003,2833.3,2832.9,0.01067919]
[1769705818765,0.003,2833.3,2832.3,0.01067919]
[1769705818981,0.9075692,2833.3,2832.1,0.01067919]
[1769705819295,0.9045692,2833.0,2831.7,0.01067919]
[1769705819501,0.9045692,2833.0,2831.9,0.01067919]
[1769705819658,0.9045692,2833.0,2832.1,0.01067919]
[1769705819997,0.9045692,2833.0,2831.9,0.01067919]
[1769705820489,0.003,2833.3,2832.5,0.01067919]
[1769705820661,0.74,2833.2,2832.5,0.01067919]
[1769705820858,0.743,2833.3,2832.7,0.01067919]
[1769705821055,0.743,2833.3,2832.9,0.01067919]
[1769705821056,0.003,2833.3,2832.9,0.01067919]
[1769705821256,0.003,2833.3,2832.9,0.89316681]
[1769705821692,0.003,2833.3,2832.9,0.88248681]
[1769705821858,0.003,2833.3,2833.0,0.01067919]
[1769705822060,0.0195952,2834.3,2833.2,0.01067919]
[1769705822373,0.0195952,2834.3,2833.4,0.01067919]
[1769705822605,0.0195952,2834.3,2833.2,0.01067919]
[1769705822777,0.0195952,2834.3,2833.1,0.01067919]
[1769705822974,0.0195952,2834.3,2833.2,0.01067919]
[1769705822975,0.90166957,2834.3,2833.2,0.01067919]
[1769705823297,0.0195952,2834.3,2833.5,0.01067919]
[1769705823589,0.9045692,2835.2,2833.9,0.01067919]
[1769705823788,0.74,2835.2,2834.3,0.01067919]
[1769705823987,0.74,2835.2,2833.9,0.01067919]
[1769705824189,0.74,2835.2,2833.7,0.01067919]
[1769705824488,1.6445692,2835.2,2833.9,0.01067919]
[1769705824806,1.6445692,2835.2,2833.0,0.99442473]
[1769705824807,0.9045692,2834.9,2832.7,0.01067919]
[1769705825258,0.9045692,2834.7,2833.3,0.01067919]
[1769705825461,0.74,2834.6,2833.1,0.01067919]
[1769705825685,0.9045692,2834.5,2832.8,3.52995163]
[1769705825989,0.9045692,2834.5,2833.0,0.01067919]
[1769705826204,0.9045692,2834.5,2832.7,0.01067919]
[1769705826410,0.9045692,2834.5,2832.8,0.88249212]
[1769705826917,0.9045692,2833.8,2831.8,3.53122924]
[1769705827214,0.9045692,2833.6,2831.8,3.53129533]
[1769705827413,0.74,2833.5,2832.3,0.01067919]
[1769705827708,0.74,2833.5,2832.1,0.01067919]
[1769705827930,0.9045692,2833.6,2832.3,0.01067919]
[1769705828086,0.74,2833.5,2832.7,0.01067919]
[1769705828424,0.74,2833.5,2832.3,0.01067919]
[1769705828716,0.74,2833.5,2831.9,0.01067919]
[1769705828717,0.9045692,2833.4,2831.9,0.01067919]
[1769705829079,0.74,2833.3,2831.7,0.89352186]
[1769705829303,0.74,2833.2,2832.1,0.88273719]
[1769705829617,0.9045692,2833.1,2831.4,0.01067919]
[1769705829792,0.9045692,2833.1,2831.2,0.01067919]
[1769705830123,0.74,2833.0,2831.4,3.53179284]
[1769705830310,0.74,2833.0,2831.3,0.01067919]
[1769705830479,0.74,2833.0,2831.6,0.88289179]
[1769705831000,0.9045692,2832.9,2830.9,0.01067919]
[1769705831192,0.9045692,2832.7,2830.9,0.35540172]
[1769705831376,0.9045692,2832.7,2830.7,0.01067919]
[1769705831583,0.9045692,2832.7,2830.9,0.88310441]
[1769705831897,0.9045692,2832.5,2830.9,0.88310818]
[1769705832100,0.74,2832.4,2830.9,0.88310818]
[1769705832285,0.9045692,2832.3,2830.7,3.53265651]
[1769705832491,0.9045692,2832.3,2830.9,0.88308658]
[1769705832689,0.9045692,2832.1,2830.9,0.88308658]
[1769705832882,0.9045692,2832.0,2829.9,0.01067919]
[1769705833086,0.9045692,2832.0,2829.8,0.01067919]
[1769705833304,0.9045692,2831.8,2829.9,0.01067919]
[1769705833614,1.6445692,2831.7,2830.1,0.01067919]
[1769705833817,1.6445692,2831.7,2829.8,0.01067919]
[1769705833818,0.9045692,2831.6,2829.8,0.01067919]
[1769705834592,0.9045692,2831.6,2829.7,0.89416507]
[1769705835423,0.9045692,2831.4,2829.9,0.01067919]
[1769705835629,0.74,2831.3,2829.9,0.01067919]
[1769705835924,0.74,2831.3,2829.7,0.89416507]
[1769705836226,0.9045692,2831.2,2829.7,0.88347844]
[1769705836590,0.9045692,2831.2,2829.3,0.01067919]
[1769705836591,0.1024,2830.9,2829.3,0.01067919]
[1769705836795,0.1024,2830.9,2829.5,0.883526]
[1769705836796,0.74,2830.8,2829.5,0.883526]
[1769705836996,1.0069692,2830.9,2829.4,0.89423092]
[1769705837323,1.62314257,2830.8,2829.4,0.45461382]
[1769705837526,0.8830178,2831.3,2829.9,0.01067919]
[1769705837894,0.8830178,2831.3,2829.7,0.01067919]
[1769705837895,0.74,2831.2,2829.7,0.01067919]
[1769705838206,0.74,2831.1,2829.6,0.01067919]
[1769705838524,0.9045692,2831.4,2830.1,0.01067919]
[1769705838711,0.74,2831.3,2830.0,0.002]
[1769705838913,1.78753365,2831.4,2830.0,0.002]
[1769705839119,0.74,2831.3,2830.0,0.002]
[1769705839324,0.9045692,2832.3,2830.3,0.01067919]
[1769705839520,1.78726441,2832.3,2830.7,0.01067919]
[1769705839725,0.9045692,2832.3,2830.9,0.01067919]
[1769705839909,0.74,2832.2,2831.1,0.01067919]
[1769705840244,0.9045692,2832.7,2830.7,0.01067919]
[1769705840419,0.9045692,2832.7,2831.1,0.01067919]
[1769705840734,0.74,2832.6,2831.1,0.01067919]
[1769705841235,0.74,2832.6,2830.6,0.01067919]
[1769705841433,0.9045692,2832.4,2830.9,0.88311137]
[1769705841644,0.9045692,2832.4,2830.8,0.893814]
[1769705841856,0.9045692,2832.2,2830.8,0.88313481]
[1769705842202,0.9045692,2832.2,2830.3,3.53318509]
[1769705842430,0.9045692,2832.2,2830.8,0.88313958]
[1769705842635,1.6445692,2832.1,2830.4,0.01067919]
[1769705842932,1.6445692,2832.1,2830.8,0.88314197]
[1769705843145,1.6445692,2832.1,2830.5,0.01067919]
[1769705843365,1.6445692,2832.1,2830.8,0.88314247]
[1769705843516,1.62276836,2832.0,2830.4,0.88326738]
[1769705843717,0.88276836,2832.0,2830.6,0.01067919]
[1769705843923,0.74,2831.9,2830.5,0.44270161]
[1769705845514,0.88267485,2832.3,2830.6,0.89388416]
[1769705845747,0.74,2832.2,2830.6,0.88320497]
[1769705846054,0.64,2832.2,2830.7,0.48694057]
[1769705846567,0.98913241,2832.1,2830.7,0.48694057]
[1769705846863,0.64,2832.2,2830.6,0.89388416]
[1769705847365,0.74,2832.1,2830.6,0.88320497]
[1769705847840,0.88276836,2832.0,2830.6,0.88320497]
[1769705848548,0.88276836,2832.0,2830.6,0.89388416]
[1769705848858,0.74,2831.9,2830.6,0.89388416]
[1769705849099,0.74,2831.9,2830.8,0.01067919]
[1769705849246,0.74,2831.9,2830.7,0.44267041]
[1769705849451,0.88276836,2832.0,2830.7,0.4533496]
[1769705849751,0.74,2831.9,2830.7,0.4533496]
[1769705849948,0.98913241,2832.3,2830.7,0.4533496]
[1769705849949,3.52989525,2833.0,2831.4,0.01067919]
[1769705850149,0.74,2832.9,2831.6,0.01067919]
[1769705850579,0.88242561,2833.1,2831.6,0.01067919]
[1769705850786,0.74,2832.8,2831.6,0.01067919]
[1769705851370,0.88242561,2833.1,2831.6,0.01067919]
[1769705851577,0.74,2833.0,2831.6,0.01067919]
[1769705851777,0.98913241,2832.9,2831.0,0.002]
[1769705851945,0.98913241,2832.6,2831.0,0.002]
[1769705852373,0.98913241,2832.5,2831.0,0.002]
[1769705853686,1.69560753,2832.4,2831.0,0.002]
[1769705854586,1.83828238,2832.3,2831.0,0.002]
[1769705854956,0.74,2832.2,2831.0,0.002]
[1769705855152,0.74,2832.1,2831.0,0.002]
[1769705855681,1.69560753,2832.1,2831.0,0.002]
[1769705855886,3.742,2832.0,2831.0,0.002]
[1769705856074,1.69560753,2832.1,2831.0,0.002]
[1769705856478,1.83837589,2832.0,2831.0,0.002]
[1769705856680,0.95560753,2831.8,2830.2,0.88330958]
[1769705856988,0.95560753,2831.8,2830.1,0.88334181]
[1769705857190,0.95560753,2831.4,2830.0,0.002]
[1769705857692,0.95560753,2831.3,2829.5,0.8835458]
[1769705857987,0.95560753,2831.1,2829.4,0.44393463]
[1769705858188,0.95560753,2831.1,2829.3,0.8835954]
[1769705858373,0.95560753,2831.1,2829.3,0.88359139]
[1769705858684,0.95560753,2831.1,2829.2,3.53456754]
[1769705858685,0.88311137,2830.9,2829.2,3.53456754]
[1769705858892,0.74,2830.8,2829.2,3.53456754]
[1769705859457,0.74,2830.7,2829.2,3.54524673]
[1769705859657,0.74,2830.7,2829.3,0.44288887]
[1769705860558,0.88320497,2830.6,2829.3,0.44288887]
[1769705861064,0.95560753,2830.5,2829.1,0.88365088]
[1769705861262,0.95560753,2830.5,2828.9,3.53483063]
[1769705861263,1.69560753,2830.5,2829.0,0.88368226]
[1769705861464,0.95560753,2830.5,2829.2,0.88362643]
[1769705861673,0.95560753,2830.5,2829.1,0.88365903]
[1769705862000,0.74,2830.4,2829.0,0.88368506]
[1769705862288,1.69560753,2830.4,2828.8,0.88374388]
[1769705862589,0.8833298,2830.2,2828.7,0.88379821]
[1769705863299,0.74,2830.1,2828.8,0.01067919]
[1769705863468,0.8833298,2830.2,2828.9,0.01067919]
[1769705863669,0.8833298,2830.2,2829.3,0.01067919]
[1769705863858,0.8833298,2830.2,2829.2,0.95513694]
[1769705863859,0.74,2830.1,2829.2,0.95513694]
[1769705864072,0.74,2830.1,2828.9,0.01067919]
[1769705864274,0.74,2830.0,2829.5,0.01267919]
[1769705864488,0.74,2829.9,2829.6,0.8835171]
[1769705864687,3.53187555,2831.4,2829.6,0.8835171]
[1769705864688,1.83859414,2831.3,2829.9,0.01067919]